Cogmind - Beta 14 @@@ ROGUE MODE // 2024.09.03 @ 01:22:09 Player: wav31355 Result: Destroyed by Y-45 Defender with Beam Rifle Performance ------------- Evolutions (1) 500 Regions Visited (3) 600 Robots Destroyed (17) 85 Value Destroyed (347) 347 Prototype IDs (0) 0 Alien Tech Used (0) 0 Bonus (0) 0 TOTAL SCORE: 1532 Bonus ------- None Cogmind --------- Core Integrity 0/400 Matter 278/300 Energy 98/100 System Corruption 2% Temperature Cool (15) Movement Core (50) Location -9/Materials Parts ------- > --- POWER (1) -------- (None) > --- PROPULSION (2) --- (None) > --- UTILITY (4) ------ Terrain Scan Processor > --- WEAPON (2) ------- (None) > --- INVENTORY (5) ---- Signal Interpreter Targeting Computer Light Cannon Peak State ------------ > --- POWER ------------ (None) > --- PROPULSION ------- Improved Treads Improved Treads > --- UTILITY ---------- Sensor Array Terrain Scanner Terrain Scan Processor Hacking Suite > --- WEAPON ----------- Grenade Launcher Mining Claw > --- INVENTORY -------- Signal Interpreter Targeting Computer Light Cannon [Rating: 13] Favorites ----------- Power None Propulsion Light Treads Treads Light Treads Leg Aluminum Leg Utility Sensor Array Device Sensor Array Processor Terrain Scan Processor Hackware Hacking Suite Protection Hardened Light Armor Plating Weapon Mining Claw Ballistic Gun Light Assault Rifle Launcher Grenade Launcher Slashing Weapon Mining Claw Build | -11 -10 -10 -9 ------- Run | Yrd Mat Min Mat Slots Evolved 2 | . . . 2 Power . | . . . . Propulsion . | . . . . Utility 2 | . . . 2 Weapon . | . . . . Parts Attached 22 | 6 7 1 8 Power . | . . . . Engine . | . . . . Core . | . . . . Reactor . | . . . . Propulsion 5 | 2 1 . 2 Treads 4 | 2 . . 2 Leg 1 | . 1 . . Wheel . | . . . . Hover . | . . . . Flight . | . . . . Utility 10 | 2 5 1 2 Device 7 | 2 3 1 1 Storage . | . . . . Processor 1 | . . . 1 Hackware 1 | . 1 . . Protection 1 | . 1 . . Artifact . | . . . . Weapon 7 | 2 1 . 4 Energy Gun . | . . . . Energy Cannon . | . . . . Ballistic Gun 2 | 2 . . . Ballistic Cannon . | . . . . Launcher 1 | . . . 1 Special Weapon . | . . . . Impact Weapon . | . . . . Slashing Weapon 4 | . 1 . 3 Piercing Weapon . | . . . . Special Melee Weapon . | . . . . Unidentified Prototypes . | . . . . Parts Lost 10 | . 2 . 8 Power . | . . . . Propulsion 4 | . 1 . 3 Utility 4 | . 1 . 3 Weapon 2 | . . . 2 Highest Loss Streak 7 | . 1 . 7 To Critical Strikes . | . . . . Average Slot Usage (%) 59 | . 60 53 57 Treads 17 | . 23 . 8 Leg 4 | . 3 14 4 Device 13 | . 11 10 18 Processor 3 | . . . 10 Hackware 7 | . 5 14 10 Ballistic Gun 1 | . 1 . . Slashing Weapon 10 | . 13 14 3 Peak Build Rating 13 | 7 8 6 13 Average Rating 6 | 3 5 5 8 On Entrance 4 | . 5 5 6 Naked Turns . | . . . . Heaviest Build 7 | 3 7 3 7 Greatest Support 46 | 3 10 3 46 Greatest Overweight (x) 2 | . 2 . 1 Average Overweight (x) . | . . . . Largest Inventory Capacity 5 | 5 5 5 5 Average Capacity 5 | 5 5 5 5 Most Carried 5 | 5 5 5 5 Average Carried 4 | 3 4 4 4 Final Capacity 5 | 5 5 5 5 Final Carried 5 | 4 5 4 3 Class Distribution -------------------- 78% | Mutant 9% | Scavenger-Scout 6% | Scout 6% | Assassin Dominant Class ---------------- Mutant | -10/Materials Mutant | -10/Mines Scavenger-Scout | -9/Materials Resources | -11 -10 -10 -9 ----------- Run | Yrd Mat Min Mat Matter Collected 423 | 300 65 . 58 Remotely . | . . . . Salvage Created 441 | 128 256 . 57 Parts 38 | 12 22 . 4 Haulers Intercepted . | . . . . Recyclers Shooed . | . . . . Parts Field Recycled . | . . . . Retrieved Matter . | . . . . Parts Self-Destructed . | . . . . Prevented . | . . . . Kills | -11 -10 -10 -9 ------- Run | Yrd Mat Min Mat Combat Hostiles Destroyed 9 | . 7 . 2 Melee 7 | . 7 . . AOE 2 | . . . 2 Classes Destroyed 7 | 2 5 . . Builder 1 | . 1 . . Tunneler 3 | 3 . . . Recycler 1 | 1 . . . Operator 2 | . 2 . . Watcher 1 | . 1 . . Swarmer 3 | . 3 . . Grunt 6 | . 4 . 2 Best Kill Streak 4 | 2 4 . 2 Combat Bots Only 3 | . 3 . 2 Max Kills in Single Turn 1 | 1 1 . 1 Gunslinging . | . . . . Exploded 1 | . . . 1 Melee 1 | . 1 . . Uniques/NPCs Destroyed . | . . . . Combat | -11 -10 -10 -9 -------- Run | Yrd Mat Min Mat Hostile Shots Fired 157 | . 60 4 93 Missed 38 | . 11 1 26 Damage Taken 1540 | . 597 44 899 Core 583 | . 139 44 400 Absorbed by Shields . | . . . . Core Remaining (%) 63 | 100 . 26 . Volleys Fired 23 | 20 . . 3 Largest 2 | 2 . . 1 Hottest 40 | 40 . . 30 Shots Fired 43 | 40 . . 3 Gun 40 | 40 . . . Cannon . | . . . . Launcher 3 | . . . 3 Special . | . . . . Kinetic 40 | 40 . . . Thermal . | . . . . Explosive 3 | . . . 3 Electromagnetic . | . . . . Robot Hit Streak 4 | 4 . . 1 Robot Miss Streak 2 | 2 . . 1 Penetration Max . | . . . . Secondary Targets . | . . . . Shots Hit Robots 54 | 21 29 . 4 Core Hits 26 | 8 11 . 7 Critical Kills . | . . . . Critical Parts Destroyed 1 | 1 . . . Critical Strikes 1 | 1 . . . Destroy 1 | 1 . . . Melee Attacks 57 | . 44 . 13 Impact . | . . . . Slashing 57 | . 44 . 13 Piercing . | . . . . Sneak Attacks 6 | . 6 . . Combat Hostiles . | . . . . Follow-up Attacks . | . . . . Damage Inflicted 1284 | 189 894 . 201 Guns 189 | 189 . . . Cannons . | . . . . Explosions 129 | . . . 129 Melee 966 | . 894 . 72 Ramming . | . . . . Kinetic 189 | 189 . . . Thermal . | . . . . Explosive 129 | . . . 129 Electromagnetic . | . . . . Impact . | . . . . Slashing 966 | . 894 . 72 Piercing . | . . . . Highest Corruption 2 | . 1 1 2 Average Corruption 1 | . 1 1 2 Corruption Purged . | . . . . Corruption Blocked . | . . . . Overload Shots . | . . . . Overflow Damage 94 | . 94 . . Projectiles . | . . . . Explosions . | . . . . Melee 94 | . 94 . . Knockbacks . | . . . . Impact . | . . . . Kinetic . | . . . . Secondary . | . . . . Self-Inflicted Damage 29 | . . . 29 Shots 1 | . . . 1 Rammed . | . . . . Targets Rammed . | . . . . Kicked . | . . . . Crushed . | . . . . Highest Temperature 8 | . 8 . . Average Temperature 8 | . 8 . . Received Heat Transfer 603 | . 222 9 372 Siege Activations . | . . . . Robots Corrupted . | . . . . Combat Hostiles . | . . . . Parts Fried . | . . . . Impact Corruptions . | . . . . Robots Melted . | . . . . Combat Hostiles . | . . . . Parts Melted . | . . . . Heat Transferred . | . . . . Parts Sabotaged . | . . . . Parts Stolen . | . . . . Parts Stripped . | . . . . Power Chain Reactions . | . . . . Alert | -11 -10 -10 -9 ------- Run | Yrd Mat Min Mat Peak Influence 195 | 20 195 51 168 Initial 36 | . 13 36 19 Average 58 | 7 74 39 53 Maximum Alert Level . | . . . . Low Security (%) 100 | 100 100 100 100 Level 1 . | . . . . Level 2 . | . . . . Level 3 . | . . . . Level 4 . | . . . . Level 5 . | . . . . High Security . | . . . . Max Security . | . . . . Squads Dispatched 2 | . 2 . . Investigation . | . . . . Extermination . | . . . . Reinforcement 2 | . 2 . . Assault . | . . . . Garrison . | . . . . Intercept . | . . . . Searches Triggered . | . . . . Construction Impeded . | . . . . Haulers Reinforced . | . . . . Active Scanning Responses . | . . . . Cargo Convoy Interrupts . | . . . . Stealth | -11 -10 -10 -9 --------- Run | Yrd Mat Min Mat Distress Signals 3 | . 2 . 1 Communications Jammed . | . . . . Distress Signals . | . . . . Times Spotted 30 | . 17 2 11 Peak Tracking Total 5 | . 4 2 5 Tactical Retreats 3 | . 1 . 2 Traps | -11 -10 -10 -9 ------- Run | Yrd Mat Min Mat Traps Triggered 2 | . 1 . 1 Indirectly . | . . . . Trap Hack Attempts . | . . . . Triggered . | . . . . Disarmed . | . . . . Reprogrammed . | . . . . Reused . | . . . . Traps Extracted . | . . . . Installed . | . . . . Triggered . | . . . . Machines | -11 -10 -10 -9 ---------- Run | Yrd Mat Min Mat Machines Disabled 2 | . . . 2 Max in Single Turn 1 | . . . 1 Machines Repaired . | . . . . Machines Dismantled . | . . . . Machines Sabotaged . | . . . . Overloaded Fab Kills . | . . . . Hacking | -11 -10 -10 -9 --------- Run | Yrd Mat Min Mat Machines Accessed 6 | . 2 . 4 Terminals 5 | . 1 . 4 Fabricators . | . . . . Repair Stations . | . . . . Recycling Units 1 | . 1 . . Scanalyzers . | . . . . Garrison Access . | . . . . Total Hacks 16 | . 4 . 12 Successful 6 | . 3 . 3 Failed 10 | . 1 . 9 Catastrophic 1 | . . . 1 Database Lockouts . | . . . . Manual 6 | . . . 6 Terminals 14 | . 2 . 12 Fabricators . | . . . . Repair Stations . | . . . . Recycling Units 2 | . 2 . . Scanalyzers . | . . . . Garrison Access . | . . . . Terminal Hacks 4 | . 1 . 3 Branch Access Points 1 | . 1 . . Emergency Access Points 1 | . . . 1 Unreport Threat 1 | . . . 1 Zone Layout 1 | . . . 1 Fabricator Hacks . | . . . . Repair Station Hacks . | . . . . Recycling Unit Hacks 2 | . 2 . . Report Inventory 1 | . 1 . . Retrieve Components 1 | . 1 . . Scanalyzer . | . . . . Garrison Access Hacks . | . . . . Unauthorized Hacks . | . . . . Terminals . | . . . . Fabricators . | . . . . Repair Stations . | . . . . Recycling Units . | . . . . Scanalyzers . | . . . . Garrison Access . | . . . . Data Cores Recovered . | . . . . Used . | . . . . Hacking Detections 5 | . 1 . 4 Full Trace Events 1 | . . . 1 Feedback Events . | . . . . Feedback Blocked . | . . . . Robot Schematics Acquired . | . . . . Robots Built . | . . . . Authchips . | . . . . Time . | . . . . Total Robot Build Rating . | . . . . Part Schematics Acquired . | . . . . Parts Built . | . . . . Authchips . | . . . . Time . | . . . . Total Part Build Rating . | . . . . Parts Repaired . | . . . . Time . | . . . . Parts Recycled . | . . . . Recycled Matter . | . . . . Retrieved Matter . | . . . . Retrieved Components 3 | . 3 . . Parts Scanalyzed . | . . . . Part Schematics Acquired . | . . . . Parts Damaged . | . . . . Bothacking | -11 -10 -10 -9 ------------ Run | Yrd Mat Min Mat Used RIF Installer . | . . . . Robots Hacked . | . . . . Non-combat . | . . . . Combat . | . . . . Robot Hacks Applied . | . . . . Relay Couplers Released . | . . . . Fabnet Peak Effective % . | . . . . Robots Rewired . | . . . . Allies Hacked . | . . . . Hacks Repelled . | . . . . Allies | -11 -10 -10 -9 -------- Run | Yrd Mat Min Mat Total Allies . | . . . . Largest Group . | . . . . Highest-Rated Group . | . . . . Highest-Rated Ally . | . . . . Total Orders . | . . . . Ally Attacks . | . . . . Total Damage . | . . . . Kills . | . . . . Allies Corrupted . | . . . . Allies Melted . | . . . . Intel | -11 -10 -10 -9 ------- Run | Yrd Mat Min Mat Robot Analysis Total . | . . . . Derelict Logs Recovered . | . . . . Drone Launches . | . . . . Drone Recoveries . | . . . . Exploration | -11 -10 -10 -9 ------------- Run | Yrd Mat Min Mat Turns Passed 1063 | 139 584 37 303 Spaces Moved 1063 | 120 475 67 401 Core 981 | 120 410 67 384 Treads 17 | . . . 17 Legs 65 | . 65 . . Wheels . | . . . . Hover . | . . . . Flight . | . . . . Fastest Speed 50 | 50 50 50 50 Average Speed 56 | 50 60 50 55 Slowest Speed 160 | 50 150 50 160 Overloaded Moves . | . . . . Propulsion Burnouts . | . . . . Robots Hopped . | . . . . Cave-ins Triggered . | . . . . Exploration Rate (%) 26 | 6 57 15 27 Regions Visited 3 Branch Regions 1 Pre-discovered Areas . | . . . . Known Exits Taken 1 | . 1 . . Unknown Exits Taken 2 | 1 . 1 . Scrap Searched . | . . . . Spaces Dug 8 | . 5 . 3 Terrain Destroyed 21 | . 5 . 16 Melee 8 | . 5 . 3 Projectile . | . . . . AOE 13 | . . . 13 Terrain Rammed . | . . . . Walls Destroyed . | . . . . Machines Disabled . | . . . . Actions | -11 -10 -10 -9 --------- Run | Yrd Mat Min Mat Total 1375 | 165 687 69 454 Wait 178 | 12 140 2 24 Move 1060 | 119 474 66 401 Hop . | . . . . Pick Up 15 | 6 7 . 2 Fast Attach 12 | 5 5 . 2 Attach 10 | 1 2 1 6 Detach 7 | . 4 . 3 Swap . | . . . . Drop 13 | 2 11 . . Fire 23 | 20 . . 3 Melee 57 | . 44 . 13 Ram . | . . . . Kick . | . . . . Crush . | . . . . Escape Stasis . | . . . . Rewire . | . . . . Trap . | . . . . Miscellaneous . | . . . . Route ------- -11/Scrapyard -10/Materials (discovered 3 exits: *Mat / *Min x2) -10/Mines -9/Materials History --------- Turn | Location | Event 23 | -11/Scrapyard | Discovered new exit (range 13) 140 | -11/Scrapyard | Entered Materials 204 | -10/Materials | Identified exit to Mines 315 | -10/Materials | Build established: Mutant 331 | -10/Materials | Discovered new exit (range 9) 573 | -10/Materials | Core integrity fell below 50% 724 | -10/Materials | Entered Mines 740 | -10/Mines | Discovered new exit (range 6) 761 | -10/Mines | Entered Materials 761 | -9/Materials | Evolved 2 slots: Utility x2 1038 | -9/Materials | Core integrity fell below 50% 1053 | -9/Materials | Core integrity fell below 20% 1064 | -9/Materials | Destroyed by Y-45 Defender with Beam Rifle Last Messages --------------- Sensor Array destroyed. G-47 Trooper destroyed. U-05 Engineer lays Concrete. Acquired 58 matter. U-05 Engineer lays Concrete. Terrain Scanner destroyed. U-05 Engineer lays Concrete. Mining Claw destroyed. U-05 Engineer lays Concrete. Imp. Treads destroyed. U-05 Engineer lays Concrete. Triggered Shock Trap. The floor emits a surge of raw power. System corrupted (+2). U-05 Engineer lays Concrete. U-05 Engineer builds a Door. U-05 Engineer lays Concrete. Hacking Suite destroyed. U-05 Engineer lays Concrete. K-01 Serf destroyed. Map ----- +----------------------------------------------------+ | ?????????????????????????????????????????????????? | | ?????????????????????????????????????????????????? | | ?????????????????????????????????????????????????? | | ?????????????????????????????????????????????????? | | ?????????????????????????????????????????????????? | | ?????????????????????????????????????????????????? | | ?????????????????????????????????????????????????? | | ?????????????????????????????????????????????????? | | ?????????????????????????????????????????????????? | | ?????????????????????????????????????????????????? | | ?????????????????????????????????????????????????? | | ?????????????????????????????????????????????????? | | ????????????#???###???#??????????????????????????? | | ????????????# #??????????????????????????? | | ????????????# """ """ #??????????????????????????? | | #???????????# """ """ #??????????????????????????? | | ????????????# """ """ #??????????????????????????? | | #########???# #??#???????????????????????? | | #???# #??#???????????????????????? | | """ "" #??#? ] ?##?##?#???????????????????? | | """ """##?#? #?####??????????? #????????? | | """ S"#########+################### ##???????? | | # a / ##??????? | | !] # ???????? | | ]] = # *% g T ?????? | | + ^ Y @kw a ?????? | | # g r a #???????? | | ######### ^ #####/###############?????????? | | ## "" ## #? ? ???????????????? | | " ## """ #? ?? ???????????????? | | "" ## " # """ "???????????????? | | T *= */ """ #?"?" ?"??????????????? | | [%= ##= "" # "???""??????????????? | | #### " # ? ????????????????? | | ###+## ##### # ? ? ???????????????? | | ## ### ##### """ # ????????????????? | | ## #?# """ #?### """ ##?### #??????????????? | | ## ### """ ##### """ #? ??????????????????? | | ?# ### """ ##### """ # ???????????????????? | | ?# #?# #?#?# """ # ?#???????????????? | | # ## """ ###?# #? ??#??????????????? | | # ## """ ###?########?????????????????????? | | ## """ #######?##?# ???????????????????? | | # ## #######?##?? ? ?????????????????? | | # ######/####??#?####?#? ????????????????????? | | ### ##?#??## #############???????????????????????? | | # #?#???## # ##?????#????????????????????? | | # ######## # """"" #?###???????????????????????? | | " + + """"" #?#?????? ??????????????????? | | " # ##### # """"" #????#??????????????????????? | +----------------------------------------------------+ Best States ------------- Heat Dissipation 28 Energy Generation 5 Energy Capacity 100 Matter Stores 300 Matter Capacity 300 Sight Range 16 Robot Scan Range 14 Terrain Scan Range 16 Terrain Scan Density 85 Armor Coverage 150 Evasion (%) 55 Recoil Reduction 2 Offensive Hacking 10 Item Schematics ----------------- None Robot Schematics ------------------ None Fabricated ------------ Nothing Alien Tech Used ----------------- None Achievements -------------- None Challenges ------------ None Game ------ Seed MetaGlidesysMatter Manual? 0 Play Time 00:31:30 Cumulative 26.3 hours Start 2024.09.02 @ 23:32:27 End 2024.09.03 @ 01:22:09 Sessions 1 Manual Loads 0 Difficulty Rogue Special Mode None Game No. 7 Rogue 7 Adventurer 0 Explorer 0 Win Type - Total 0 Types 0/0/0/0/0/0/0/0/0 Lore% 25 Gallery% 22 Achievement% 23 Wizard Run 0 Options --------- Layout 1 ASCII 0 Keyboard 0 Movement Arrows Keybinds 0 Fullscreen 1 Font 18/SmallcapsGlow Map View 50x40 Zoom Use 0% Tactical HUD 0 Map Filters NONE Filters NONE Steam 1 RUN: 594c80d6-179e-457d-a529-9682913e8911